fUSD/lending_fUSD_20250724
["ID","MTS","AMOUNT","RATE_DAILY","PERIOD"]
[374537335,1753343436482,-411.46689169,0.0002568,7]
[374537336,1753343436537,-88.53310831,0.0002568,7]
[374537337,1753343436547,-529.14,0.00025692,2]
[374537338,1753343436556,-546.0,0.00025696,2]
[374537339,1753343436565,-700.0,0.000257,9]
[374537340,1753343436576,-1373.26202455,0.000257,2]
[374537341,1753343436588,-1323.4572837,0.000257,2]
[374537342,1753343436600,-1048.01353085,0.000257,2]
[374537343,1753343436609,-152.23049951,0.00025706,2]
[374537344,1753343436619,-197.30965903,0.00025753,7]
[374537345,1753343436629,-210.0752302,0.00025753,7]
[374537346,1753343436640,-289.9247698,0.00025753,7]
[374537347,1753343436650,-88.73230482,0.00025753,30]
[374537348,1753343436662,-123.91428379,0.00025753,30]
[374537349,1753343436672,-150.0,0.00025756,2]
[374537350,1753343436681,-47.23996931,0.00025762,13]
[374537351,1753343436693,-553.89438854,0.00025762,13]
[374537352,1753343436703,-152.23049951,0.0002577,2]
[374537353,1753343436712,-200.0,0.00025792,2]
[374537354,1753343436722,-150.0,0.00025796,2]
[374537355,1753343436732,-1000.0,0.000258,9]
[374537356,1753343436742,-152.23049951,0.00025835,2]
[374537357,1753343436752,-150.0,0.00025861,2]
[374537358,1753343436762,-212.64658861,0.00025863,30]
[374537359,1753343436771,-152.58588195,0.00025879,2]
[374537360,1753343436782,-88.62214188,0.00025879,2]
[374537527,1753343440669,-150.0,0.00024541,2]
[374537530,1753343440679,-560.89172499,0.00025879,2]
[374537532,1753343440690,-408.63493313,0.00025879,2]
[374537534,1753343440700,-176.4104791,0.00025882,2]
[374537536,1753343440709,-6262.8026,0.00025887,2]
[374537538,1753343440718,-173.0,0.0002589,7]
[374537540,1753343440728,-160.0,0.0002589,7]
[374537542,1753343440738,-161.0,0.0002589,7]
[374537544,1753343440747,-158.46594932,0.000259,2]
[374537546,1753343440757,-584.89926696,0.000259,2]
[374537548,1753343440767,-5000.0,0.000259,2]
[374537550,1753343440776,-272.5294,0.000259,3]
[374537552,1753343440787,-1400.0,0.000259,9]
[374537554,1753343440796,-152.23049951,0.000259,2]
[374537556,1753343440806,-628.88901818,0.000259,2]
[374537558,1753343440816,-900.0,0.00025911,2]
[374537560,1753343440825,-150.0,0.00025916,2]
[374537562,1753343440835,-2248.17813562,0.00025928,2]
[374537564,1753343440844,-231.19465298,0.0002594,4]
[374537566,1753343440854,-150.0,0.0002594,2]
[374537568,1753343440864,-150.0,0.0002594,2]
[374537570,1753343440874,-150.0,0.0002594,2]
[374537572,1753343440884,-150.0,0.0002594,2]
[374537574,1753343440894,-152.30789644,0.0002594,2]
[374537576,1753343440905,-150.0,0.0002594,2]
[374537578,1753343440916,-150.0,0.0002594,2]
[374537580,1753343440926,-150.0,0.0002594,2]
[374537582,1753343440935,-150.0,0.0002594,2]
[374537584,1753343440945,-150.0,0.0002594,2]
[374537586,1753343440955,-150.0,0.0002594,2]
[374537588,1753343440964,-150.0,0.0002594,2]
[374537590,1753343440974,-150.0,0.0002594,2]
[374537592,1753343440983,-150.0,0.0002594,2]
[374537626,1753343441305,-150.0,0.0002594,2]
[374537629,1753343441321,-212.64658861,0.00025945,30]
[374537631,1753343441330,-150.0,0.00025954,7]
[374537633,1753343441340,-200.0,0.00025954,7]
[374537635,1753343441350,-150.0,0.00025954,7]
[374537637,1753343441359,-200.0,0.00025954,7]
[374537639,1753343441369,-500.0,0.00025954,7]
[374537641,1753343441379,-201.88609988,0.00025954,7]
[374537643,1753343441388,-352.69344308,0.00025954,7]
[374537645,1753343441397,-2274.74,0.00025963,2]
[374537647,1753343441407,-2274.74,0.00025971,2]
[374537649,1753343441420,-32962.75063719,0.00025972,3]
[374537651,1753343441432,-816.72767261,0.00025972,3]
[374537653,1753343441441,-548.78878146,0.00025973,2]
[374537655,1753343441451,-500.0,0.00025973,2]
[374537657,1753343441463,-500.0,0.00025973,2]
[374537659,1753343441472,-506.99028994,0.00025973,2]
[374537661,1753343441483,-502.34044548,0.00025973,2]
[374537663,1753343441492,-507.88411216,0.00025973,2]
[374537665,1753343441502,-513.40344777,0.00025973,2]
[374537668,1753343441512,-500.0,0.00025973,2]
[374537669,1753343441521,-162.18189456,0.00025973,2]
[374537671,1753343441531,-500.0,0.00025973,2]
[374537674,1753343441542,-505.66396458,0.00025973,2]
[374537675,1753343441551,-139.04654111,0.00025973,2]
[374537699,1753343441762,-150.0,0.00024815,2]
[374537701,1753343441772,-360.95345889,0.00025973,2]
[374537703,1753343441782,-501.71157845,0.00025973,2]
[374537705,1753343441793,-292.96037145,0.00025973,2]
[374537707,1753343441805,-207.03962855,0.00025973,2]
[374537709,1753343441814,-576.62523696,0.00025973,2]
[374537711,1753343441826,-2267.40786532,0.00025973,2]
[374537727,1753343441961,-201.0075076,0.00025089,2]
[374537729,1753343441971,-14642.26591938,0.00025973,2]
[374537731,1753343441987,-4243.3262153,0.00025973,2]
[374537733,1753343441996,-12602.0,0.00025973,2]
[374537735,1753343442006,-249.91,0.00025973,2]
[374537737,1753343442016,-150.0,0.00025974,4]
[374537739,1753343442026,-25334.6087324,0.00025978,3]
[374537741,1753343442035,-150.0,0.00025979,4]
[374537743,1753343442044,-21897.34043852,0.0002598,3]
[374537746,1753343442056,-431.80999992,0.0002598,3]
[374537812,1753343442798,-200.0,0.00024541,2]
[374537814,1753343442809,-53674.67575866,0.0002598,3]
[374537816,1753343442818,-42224.3478873,0.0002598,3]
[374537818,1753343442829,-67558.9566197,0.00025981,3]
[374537820,1753343442839,-72570.7523461,0.00025981,3]
[374537822,1753343442848,-1000.0,0.00025981,2]
[374537824,1753343442858,-14514.1504692,0.00025982,3]
[374537826,1753343442868,-43542.4514077,0.00025988,3]
[374537828,1753343442877,-154.90640027,0.00025988,2]
[374537830,1753343442886,-160.27,0.00025988,2]
[374537832,1753343442896,-14514.1504692,0.00025989,3]
[374537834,1753343442906,-150.0,0.00025989,4]
[374537837,1753343442915,-145141.504692,0.0002599,3]
[374537839,1753343442925,-145141.504692,0.0002599,3]
[374537842,1753343442936,-160.27,0.0002599,2]
[374537845,1753343442946,-1166.87,0.00025991,2]
[374537847,1753343442956,-177981.7266922,0.00025991,2]
[374537849,1753343442966,-7565.2919373,0.00025991,2]
[374537851,1753343442975,-3058.6208347,0.00025991,2]
[374537853,1753343442985,-154.7488304,0.00025991,2]
[374537855,1753343442995,-152.099588,0.00025991,7]
[374537858,1753343443005,-515.38299159,0.00025991,2]
[374537860,1753343443014,-151.0,0.00025991,7]
[374537862,1753343443024,-644.228738,0.00025991,2]
[374537864,1753343443034,-151.0,0.00025992,7]
[374537866,1753343443049,-1354.467718,0.00025992,7]
[374537868,1753343443060,-1354.467718,0.00025992,7]
[374537869,1753343443073,-513.526302,0.00025992,7]
[374537872,1753343443084,-513.526302,0.00025992,7]
[374537874,1753343443095,-529.14,0.00025994,2]
[374537876,1753343443106,-151.0,0.00025998,2]
[374537878,1753343443117,-151.0,0.00025998,7]
[374537880,1753343443127,-151.0,0.00025998,7]
[374537882,1753343443137,-151.0,0.00025998,7]
[374537884,1753343443148,-159.111317,0.00025998,7]
[374537886,1753343443158,-151.0,0.00025998,7]
[374537888,1753343443168,-159.111317,0.00025998,7]
[374537890,1753343443178,-151.0,0.00025998,7]
[374537892,1753343443188,-254.74861,0.00025998,7]
[374537894,1753343443199,-254.74861,0.00025998,7]
[374537896,1753343443208,-151.0,0.00025998,7]
[374537898,1753343443218,-151.0,0.00025998,7]
[374537900,1753343443228,-151.0,0.00025998,7]
[374537902,1753343443237,-151.0,0.00025998,7]
[374537904,1753343443247,-151.942079,0.00025998,7]
[374537906,1753343443257,-151.806393,0.00025998,7]
[374537908,1753343443267,-151.0,0.00025998,7]
[374537910,1753343443276,-151.0,0.00025998,7]
[374537912,1753343443285,-151.0,0.00025998,7]
[374537914,1753343443301,-151.0,0.00025998,7]
[374537916,1753343443312,-151.0,0.00025998,7]
[374537918,1753343443321,-151.0,0.00025998,7]
[374537920,1753343443331,-151.0,0.00025998,7]
[374537922,1753343443340,-151.0,0.00025998,7]
[374537924,1753343443349,-151.0,0.00025998,7]
[374537926,1753343443359,-151.0,0.00025998,7]
[374537928,1753343443368,-151.0,0.00025998,7]
[374537930,1753343443378,-678.473947,0.00025998,7]
[374537932,1753343443387,-678.473947,0.00025998,7]
[374537934,1753343443397,-106294.12307354,0.00025998,2]
[374537936,1753343443407,-670.91034485,0.00025999,2]
[374537938,1753343443420,-300.0,0.00025999,10]
[374537940,1753343443430,-300.0,0.00025999,10]
[374537942,1753343443440,-481.37745153,0.00025999,2]
[374537944,1753343443452,-1922.07017615,0.00025999,2]
[374537945,1753343443462,-151.0,0.00025999,7]
[374537948,1753343443473,-150.0,0.00025999,15]
[374537950,1753343443483,-151.0,0.00025999,7]
[374537952,1753343443495,-159.111317,0.00025999,7]
[374537954,1753343443506,-151.0,0.00025999,7]
[374537956,1753343443515,-159.111317,0.00025999,7]
[374537958,1753343443525,-151.0,0.00025999,7]
[374537960,1753343443535,-254.74861,0.00025999,7]
[374537962,1753343443549,-254.74861,0.00025999,7]
[374537964,1753343443559,-151.0,0.00025999,7]
[374537966,1753343443568,-176.219985,0.00025999,7]
[374537968,1753343443578,-2546.89,0.00025999,2]
[374537970,1753343443588,-1000.0,0.00025999,2]
[374537972,1753343443597,-1047.8601982,0.00025999,5]
[374537974,1753343443607,-2685.52489433,0.00025999,2]
[374537976,1753343443616,-151.0,0.00025999,7]
[374537978,1753343443626,-151.0,0.00025999,7]
[374537980,1753343443635,-151.0,0.00025999,7]
[374537982,1753343443645,-151.0,0.00025999,3]
[374537984,1753343443655,-253.21098327,0.00025999,3]
[374537986,1753343443665,-13076.0,0.00025999,3]
[374537988,1753343443675,-194.22172205,0.00025999,2]
[374537992,1753343443707,-313.352,0.00025999,2]
[374538034,1753343444106,-29940.3444411,0.00025999,2]
[374538036,1753343444118,-7580.1464806,0.00025999,2]
[374538234,1753343446035,-239.93815389,0.00024541,2]
[374538235,1753343446047,-786.17784839,0.00025637,2]
[374538238,1753343446059,-40.82215161,0.00025637,2]
[374538240,1753343446068,-509.66704038,0.00025999,2]
[374538242,1753343446080,-2038.55619919,0.00025999,2]
[374538268,1753343446312,-827.0,0.00025911,2]
[374538270,1753343446323,-1005.29871999,0.00025999,2]
[374538272,1753343446334,-975.31732,0.00025999,2]
[374538274,1753343446345,-309.86593324,0.00025999,2]
[374538455,1753343448082,-153.0,0.00025676,2]
[374538456,1753343448092,-153.0,0.00025676,2]
[374538457,1753343448102,-151.0,0.00025998,7]
[374538458,1753343448111,-499.93,0.00025999,2]
[374538459,1753343448123,-142159.59206877,0.00025999,2]
[374538460,1753343448132,-17931.919903,0.00025999,2]
[374538462,1753343448142,-41474.97164361,0.00026,2]
[374538463,1753343448151,-20743.35331652,0.00026,3]
[374538473,1753343448227,-6999.10668348,0.00026,3]
[374538475,1753343448236,-46063.72649354,0.00026,5]
[374539169,1753343474686,197.61,0.00013699,2]
[374539172,1753343703111,-174.94923544,0.00017336,2]
[374539173,1753343706716,-167.79021263,0.00016659,2]
[374539174,1753343714186,-447.02718353,0.00016659,2]
[374539175,1753343715121,2699.59407289,0.00027397,120]
[374539176,1753343720419,-217.45601779,0.00016659,2]
[374539177,1753343728417,-192.15623626,0.00016659,2]
[374539178,1753343731590,-58.57034979,0.00016659,2]
[374539179,1753343731613,-390.88579264,0.00016659,2]
[374539180,1753343736057,-343.91465065,0.00016659,2]
[374539181,1753343737881,-293.80498901,0.00016659,2]
[374539182,1753343743984,-54.3945677,0.00016659,2]
[374539183,1753343744010,-471.13690276,0.00016659,2]
[374539184,1753343746118,-166.1554408,0.00016659,2]
[374539185,1753343752287,-245.13600653,0.00016659,2]
[374539186,1753343756917,-200.57164991,0.00016659,2]
[374539187,1753343756940,-39.44164048,0.00016659,2]
[374539188,1753343759371,-220.25046435,0.00016659,2]
[374539189,1753343760310,403.92188187,0.00016559,2]
[374539190,1753343767545,-151.006912,0.00016659,2]
[374539191,1753343771465,-221.10226245,0.00016659,2]
[374539192,1753343775598,-316.0,0.00016659,2]
[374539193,1753343789401,500.0,0.00016326,2]
[374539194,1753343845816,-135.19872072,0.00016659,2]
[374539195,1753343845840,-31.44954854,0.00016659,2]
[374539196,1753343861694,1069.0,0.00025,90]
[374539199,1753344046412,450.0,0.00016326,2]
[374539200,1753344120407,-1051.55045146,0.00016659,2]
[374539201,1753344120428,-642.10112202,0.00016659,2]
[374539202,1753344120450,-166.82,0.00016712,2]
[374539203,1753344120471,-908.05076456,0.00017336,2]
[374539204,1753344120492,-242.9781786,0.00017492,2]
[374539205,1753344120515,-257.0218214,0.00017492,2]
[374539206,1753344120538,-2484.262454,0.00018156,2]
[374539207,1753344120561,-230.0,0.00018247,2]
[374539208,1753344120588,-1200.0,0.00018248,2]
[374539209,1753344120613,-1083.0,0.00018249,2]
[374539210,1753344122318,300.0,0.00018247,2]
[374539211,1753344130335,382.5,0.00017958,2]
[374539212,1753344150795,150.5,0.00026017,120]
[374539213,1753344151244,150.5,0.00026007,120]
[374539214,1753344154807,283.47,0.00025997,120]
[374539215,1753344156988,-300.0,0.00018325,2]
[374539216,1753344157011,-250.0,0.00018325,2]
[374539217,1753344157034,-154.16647999,0.00018886,2]
[374539218,1753344157057,-151.0,0.00018886,2]
[374539219,1753344157080,-151.0,0.00018886,2]
[374539220,1753344157104,-151.0,0.00018886,2]
[374539221,1753344157132,-151.0,0.00018886,2]
[374539222,1753344157156,-151.0,0.00018886,2]
[374539223,1753344157179,-151.0,0.00018886,2]
[374539224,1753344157201,-151.0,0.00018886,2]
[374539225,1753344157224,-151.0,0.00018886,2]
[374539226,1753344157247,-151.0,0.00018886,2]
[374539227,1753344157270,-151.0,0.00018886,2]
[374539228,1753344157292,-151.0,0.00018886,2]
[374539229,1753344157315,-151.0,0.00018886,2]
[374539230,1753344157338,-10048.89732681,0.00018898,2]
[374539231,1753344157359,-208.10756509,0.00018978,2]
[374539232,1753344157616,151.0,0.00018886,2]
[374539233,1753344159068,151.0,0.00018886,2]
[374539234,1753344159495,151.0,0.00018886,2]
[374539235,1753344160536,151.0,0.00018886,2]
[374539236,1753344160879,151.0,0.00018886,2]
[374539237,1753344190191,636.59,0.00025831,120]
[374539238,1753344193257,500.0,0.00027397,120]
[374539240,1753344197538,500.0,0.00027397,120]
[374539241,1753344202153,395.025,0.00018697,2]
[374539242,1753344205697,500.0,0.00027397,120]
[374539263,1753344524603,187.72,0.00013699,2]
[374539266,1753344625253,-269.5149592,0.00016675,2]
[374539267,1753344627677,-66.2562908,0.00016675,2]
[374539268,1753344627700,-84.7506202,0.00017015,2]
[374539270,1753344632321,-137.35855425,0.00017015,2]
[374539271,1753344632420,-151.0,0.00018978,2]
[374539272,1753344632430,-2997.5253088,0.00018978,2]
[374539273,1753344632440,-274.3191462,0.00019077,2]
[374539274,1753344632452,-575.6808538,0.00019077,2]
[374539275,1753344632461,-10526.68409844,0.00019078,5]
[374539276,1753344632473,-3177.0146821,0.00019078,5]
[374539277,1753344632485,-14044.83861083,0.00019078,5]
[374539278,1753344632581,-74170.73422686,0.00019078,5]
[374539279,1753344632948,-1563.37864247,0.00019078,5]
[374539280,1753344632960,-375.3611002,0.00019078,5]
[374539284,1753344633095,-34409.48979172,0.00019078,5]
[374539288,1753344633105,-500.0,0.00019078,2]
[374539290,1753344633115,-1241.34,0.00019178,2]
[374539292,1753344633125,-1083.0,0.00019209,2]
[374539294,1753344633135,-632.44249126,0.000199,2]
[374539296,1753344633146,-635.0,0.00020126,2]
[374539298,1753344633156,-187.72,0.00020187,2]
[374539300,1753344633166,-632.44249111,0.0002021,2]
[374539301,1753344633176,-1083.0,0.0002022,2]
[374539302,1753344633186,-632.44249111,0.00020521,3]
[374539303,1753344633196,-1241.34,0.00020781,2]
[374539304,1753344633205,-632.44249111,0.00020831,4]
[374539305,1753344633215,-632.44249111,0.00021141,4]
[374539306,1753344633226,-1083.0,0.00021284,2]
[374539307,1753344633236,-534.16,0.00021434,2]
[374539308,1753344633246,-632.44249111,0.00021452,5]
[374539309,1753344633256,-1850.34534739,0.00021617,2]
[374539310,1753344633265,-632.44249111,0.00021762,5]
[374539311,1753344633276,-759.430154,0.00021917,2]
[374539312,1753344633288,-759.430154,0.00021917,2]
[374539313,1753344633298,-759.430154,0.00021917,2]
[374539314,1753344633309,-164.56377,0.00021917,2]
[374539315,1753344633319,-425.12,0.00022,2]
[374539316,1753344633330,-426.0,0.00022,2]
[374539317,1753344633340,-858.79,0.00022044,2]
[374539318,1753344633350,-632.44249111,0.00022072,6]
[374539319,1753344633361,-200.0,0.00022108,2]
[374539320,1753344633371,-759.430154,0.00022191,2]
[374539321,1753344633381,-1048.75,0.00022218,2]
[374539322,1753344633392,-500.0,0.00022278,2]
[374539323,1753344633403,-151.146339,0.00022363,2]
[374539324,1753344633414,-632.44249111,0.00022383,7]
[374539325,1753344633423,-1241.34,0.00022383,2]
[374539326,1753344633433,-307.76,0.00022398,2]
[374539327,1753344633443,-1083.0,0.00022404,2]
[374539328,1753344633453,-5115.05966094,0.00022413,2]
[374539329,1753344633464,-509.0,0.00022438,2]
[374539330,1753344633473,-759.430154,0.00022465,2]
[374539331,1753344633483,-23489.3,0.00022505,2]
[374539332,1753344633493,-250.0,0.00022556,2]
[374539333,1753344633503,-5000.0,0.00022632,2]
[374539334,1753344633512,-217.5,0.00022666,2]
[374539335,1753344633522,-157.94,0.0002268,2]
[374539336,1753344633537,-632.44249111,0.00022693,7]
[374539337,1753344633547,-500.0,0.00022751,2]
[374539338,1753344633557,-500.0,0.00022751,2]
[374539339,1753344633568,-500.0,0.00022751,2]
[374539340,1753344633578,-376.46219142,0.00022751,2]
[374539341,1753344633588,-500.0,0.00022751,2]
[374539342,1753344633599,-500.0,0.00022751,2]
[374539343,1753344633610,-513.07993874,0.00022751,2]
[374539345,1753344633621,-3575.71,0.00022781,2]
[374539347,1753344633631,-913.62,0.00022804,2]
[374539349,1753344633642,-4555.0,0.00022808,2]
[374539351,1753344633652,-233.69630869,0.00022836,2]
[374539353,1753344633662,-373.56512622,0.0002292,2]
[374539355,1753344633672,-636.59,0.00022961,2]
[374539357,1753344633683,-5000.0,0.00023,2]
[374539359,1753344633693,-632.44249111,0.00023003,8]
[374539361,1753344633703,-217.5,0.00023078,2]
[374539364,1753344633716,-207.0,0.0002308,2]
[374539366,1753344633730,-1000.0,0.00023141,2]
[374539368,1753344633740,-418.0,0.0002318,2]
[374539370,1753344633750,-180.0,0.00023181,7]
[374539372,1753344633761,-1151.62179679,0.00023296,2]
[374539374,1753344633771,-632.44249111,0.00023314,9]
[374539376,1753344633785,-3628.75,0.00023338,2]
[374539378,1753344633795,-509.0,0.00023377,3]
[374539379,1753344633806,-217.5,0.00023489,2]
[374539380,1753344633816,-591.64,0.000235,2]
[374539381,1753344633826,-307.76,0.00023518,2]
[374539382,1753344633836,-167.71,0.00023529,2]
[374539383,1753344633846,-207.0,0.0002353,2]
[374539384,1753344633856,-2751.0,0.00023542,2]
[374539385,1753344633866,-1083.0,0.00023584,2]
[374539386,1753344633877,-632.44249111,0.00023624,9]
[374539387,1753344633888,-425.12,0.00023703,2]
[374539388,1753344633899,-150.0,0.00023774,2]
[374539389,1753344633909,-150.0,0.00023826,2]
[374539390,1753344633919,-759.430154,0.00023835,2]
[374539391,1753344633930,-335.18,0.00023836,2]
[374539392,1753344633940,-150.0,0.00023869,2]
[374539393,1753344633950,-217.5,0.00023901,2]
[374539394,1753344633960,-150.0,0.00023922,2]
[374539395,1753344633970,-632.44249111,0.00023934,10]
[374539396,1753344633981,-1241.34,0.00023986,2]
[374539397,1753344633990,-207.0,0.0002399,2]
[374539398,1753344634000,-150.0,0.00024075,2]
[374539399,1753344634010,-300.65,0.00024098,2]
[374539400,1753344634019,-150.0,0.00024156,2]
[374539401,1753344634032,-150.0,0.00024213,2]
[374539402,1753344634042,-632.44249111,0.00024245,10]
[374539403,1753344634051,-191.59685466,0.00024252,2]
[374539404,1753344634061,-160.0,0.00024269,2]
[374539405,1753344634071,-211.01152796,0.00024269,2]
[374539406,1753344634081,-839.91269601,0.00024269,2]
[374539407,1753344634091,-477.18900901,0.00024269,2]
[374539408,1753344634101,-186.27,0.00024307,2]
[374539409,1753344634111,-217.5,0.00024312,2]
[374539410,1753344634121,-509.0,0.00024316,4]
[374539411,1753344634131,-150.0,0.00024334,2]
[374539412,1753344634141,-409.0,0.0002437,2]
[374539413,1753344634151,-207.0,0.0002445,2]
[374539414,1753344634161,-632.44249111,0.00024555,11]
[374539415,1753344634172,-307.76,0.00024637,2]
[374539416,1753344634182,-1000.0,0.00024658,2]
[374539417,1753344634192,-150.0,0.00024688,2]
[374539418,1753344634202,-9216.856,0.00024698,2]
[374539419,1753344634212,-500.0,0.00024698,2]
[374539420,1753344634222,-500.0,0.00024698,2]
[374539421,1753344634232,-500.0,0.00024698,2]
[374539422,1753344634241,-600.0,0.00024698,2]
[374539423,1753344634252,-500.0,0.00024698,2]
[374539424,1753344634262,-325.68686684,0.00024698,2]
[374539425,1753344634272,-346.92554585,0.00024698,2]
[374539426,1753344634286,-500.0,0.00024698,2]
[374539427,1753344634296,-500.0,0.00024698,2]
[374539428,1753344634307,-500.0,0.00024698,2]
[374539429,1753344634318,-500.0,0.00024698,2]
[374539430,1753344634328,-500.0,0.00024698,2]
[374539431,1753344634339,-611.44626663,0.00024698,2]
[374539432,1753344634350,-500.0,0.00024698,2]
[374539433,1753344634360,-500.0,0.00024698,2]
[374539434,1753344634371,-500.0,0.00024698,2]
[374539435,1753344634382,-500.0,0.00024698,2]
[374539436,1753344634392,-500.0,0.00024698,2]
[374539437,1753344634401,-500.0,0.00024698,2]
[374539438,1753344634411,-500.0,0.00024698,2]
[374539439,1753344634421,-500.0,0.00024698,2]
[374539440,1753344634430,-500.0,0.00024698,2]
[374539441,1753344634440,-500.0,0.00024698,2]
[374539442,1753344634450,-500.0,0.00024698,2]
[374539443,1753344634460,-500.0,0.00024698,2]
[374539444,1753344634470,-500.0,0.00024698,2]
[374539445,1753344634480,-500.0,0.00024698,2]
[374539446,1753344634490,-256.8299145,0.00024698,2]
[374539447,1753344634501,-231.28369723,0.00024698,2]
[374539448,1753344634511,-217.5,0.00024724,2]
[374539449,1753344634522,-1083.0,0.00024825,2]
[374539450,1753344634534,-632.44249111,0.00024866,12]
[374539451,1753344634544,-150.0,0.00024904,2]
[374539452,1753344634555,-1000.0,0.00024909,2]
[374539453,1753344634565,-207.0,0.0002491,2]
[374539454,1753344634575,-534.16,0.00024913,2]
[374539455,1753344634585,-165.0,0.00024932,2]
[374539456,1753344634595,-150.0,0.00024932,2]
[374539457,1753344634605,-150.0,0.00024932,2]
[374539458,1753344634615,-165.0,0.00024932,2]
[374539459,1753344634625,-459.31,0.00024932,2]
[374539460,1753344634634,-150.0,0.00024932,2]
[374539461,1753344634645,-459.31,0.00024932,2]
[374539462,1753344634655,-150.0,0.00024932,2]
[374539463,1753344634665,-165.0,0.00024932,2]
[374539464,1753344634675,-150.0,0.00024932,2]
[374539465,1753344634686,-459.31,0.00024932,2]
[374539466,1753344634696,-156.59,0.00024932,2]
[374539467,1753344634707,-237.94,0.00024932,2]
[374539468,1753344634719,-150.0,0.00024948,2]
[374539469,1753344634731,-9999.99,0.0002498,2]
[374539470,1753344634741,-337.78,0.0002498,2]
[374539471,1753344634751,-2104.35840751,0.00025,4]
[374539472,1753344634762,-5000.0,0.00025,2]
[374539473,1753344634772,-152.84,0.00025,2]
[374539474,1753344634784,-174.0,0.00025,7]
[374539475,1753344634795,-172.0,0.00025,7]
[374539476,1753344634805,-150.0,0.00025016,2]
[374539477,1753344634816,-150.0,0.00025037,2]
[374539478,1753344634826,-150.0,0.00025073,2]
[374539479,1753344634836,-217.5,0.00025135,2]
[374539480,1753344634845,-632.44249111,0.00025176,12]
[374539481,1753344634856,-150.0,0.00025186,2]
[374539482,1753344634866,-5421.0,0.00025201,2]
[374539483,1753344634876,-974.19781859,0.00025246,2]
[374539484,1753344634886,-509.0,0.00025255,6]
[374539485,1753344634896,-536.0,0.00025308,2]
[374539486,1753344634906,-207.0,0.0002537,2]
[374539487,1753344634916,-1248.0,0.00025386,2]
[374539488,1753344634926,-536.0,0.00025405,7]
[374539489,1753344634936,-425.12,0.00025406,7]
[374539490,1753344634945,-150.0,0.00025469,2]
[374539491,1753344634955,-152.03,0.00025472,2]
[374539492,1753344634965,-2054.88,0.00025472,2]
[374539493,1753344634974,-353.36,0.00025472,2]
[374539494,1753344634984,-433.15,0.00025472,2]
[374539495,1753344634994,-1588.549514,0.0002548,16]
[374539496,1753344635004,-632.44249111,0.00025486,13]
[374539497,1753344635014,-150.0,0.0002549,2]
[374539498,1753344635024,-1000.0,0.000255,2]
[374539499,1753344635035,-536.0,0.00025527,2]
[374539500,1753344635045,-217.5,0.00025547,2]
[374539501,1753344635055,-150.0,0.00025548,2]
[374539502,1753344635065,-401.0,0.0002555,2]
[374539503,1753344635075,-534.16,0.00025558,2]
[374539504,1753344635085,-150.0,0.00025587,2]
[374539505,1753344635095,-1241.34,0.00025589,2]
[374539506,1753344635106,-200.0,0.000256,9]
[374539507,1753344635115,-284.0,0.00025634,2]
[374539508,1753344635125,-153.0,0.00025654,2]
[374539509,1753344635135,-150.0,0.00025657,2]
[374539510,1753344635144,-8429.8598322,0.0002569,3]
[374539511,1753344635154,-500.0,0.000257,9]
[374539512,1753344635163,-1000.0,0.000257,8]
[374539513,1753344635173,-1000.0,0.000257,7]
[374539514,1753344635183,-1000.0,0.000257,7]
[374539515,1753344635194,-1000.0,0.000257,6]
[374539516,1753344635204,-1000.0,0.000257,6]